bitfinex/quotes_SOLUSD_20240905
["timestamp","ask_amount","ask_price","bid_price","bid_amount"]
[1725544102058,6.5371,134.19,134.09,18.643]
[1725544102383,7.75540656,134.16,134.09,44.38724812]
[1725544102671,24.8685,134.24,134.12,18.6389]
[1725544102984,7.4521,134.19,134.14,7.4544]
[1725544103272,7.4515,134.2,134.12,18.6389]
[1725544103472,7.75245338,134.2,134.14,18.6361]
[1725544103678,7.75245338,134.2,134.11,32.3758]
[1725544103856,7.4532,134.17,134.11,32.3758]
[1725544104362,7.75245338,134.2,134.07,18.6457]
[1725544104671,7.75245338,134.2,134.07,26.1044]
[1725544104672,7.456,134.12,134.07,26.1044]
[1725544104848,7.4566,134.11,134.07,18.6457]
[1725544105052,7.4566,134.11,134.06,14.0215]
[1725544105053,65.0,134.1,134.03,18.6512]
[1725544105358,65.0,134.1,134.02,23.5072]
[1725544105566,65.0,134.1,134.01,6.4698]
[1725544106152,7.46,134.05,134.0,26.119]
[1725544106383,20.0,134.04,134.0,18.6564]
[1725544106676,83.6441,134.1,134.0,18.6564]
[1725544107057,7.4594,134.06,134.0,18.6564]
[1725544107250,20.0,134.05,134.0,18.6564]
[1725544107666,20.0,134.05,134.01,7.4615]
[1725544107854,20.0,134.06,134.02,7.4612]
[1725544108060,45.0,134.1,134.02,18.6527]
[1725544108469,52.4571,134.1,134.03,1.49173306]
[1725544108675,7.458,134.09,134.04,7.4603]
[1725544109476,20.0,134.08,134.05,7.4596]
[1725544109674,25.1785,134.15,134.0,81.69964812]
[1725544109675,6.5425,134.15,134.0,81.69964812]
[1725544109881,7.4566,134.11,134.06,7.4593]
[1725544110188,7.4578,134.09,134.03,7.4604]
[1725544110361,18.64,134.13,134.03,18.6522]
[1725544110684,18.6423,134.11,134.0,18.6563]
[1725544110870,72.4575,134.1,134.04,7.4602]
[1725544111063,65.0,134.1,134.03,18.6521]
[1725544111267,7.4582,134.08,134.03,26.1127]
[1725544111475,27.4588,134.07,134.02,7.4614]
[1725544111682,27.4595,134.06,134.01,7.4618]
[1725544111982,7.4588,134.07,134.02,7.4615]
[1725544112159,20.0,134.06,134.03,7.4609]
[1725544112578,20.0,134.07,134.03,7.4609]
[1725544112777,27.4589,134.07,134.02,26.114]
[1725544113078,20.0,134.07,134.02,18.6526]
[1725544113278,7.4556,134.13,134.07,7.4583]
[1725544113489,18.6276,134.17,134.0,37.3126]
[1725544113490,18.6276,134.17,134.03,44.38724812]
[1725544113670,6.2715,134.2,134.11,7.4562]
[1725544113987,7.75851305,134.13,134.08,18.6445]
[1725544114163,19.997649,134.18,134.08,18.6445]
[1725544114371,57.261749,134.18,134.05,18.6495]
[1725544114565,19.997649,134.18,134.04,44.38724812]
[1725544114884,7.75903119,134.19,134.16,7.4537]
[1725544115087,7.75903119,134.19,134.14,26.091]
[1725544115390,7.4534,134.17,134.11,18.6411]
[1725544115561,7.4543,134.15,134.11,18.6411]
[1725544115764,7.75903119,134.19,134.11,18.6411]
[1725544115765,7.4538,134.16,134.11,18.6411]
[1725544115965,7.75903119,134.19,134.11,18.6411]
[1725544116189,7.4532,134.17,134.12,7.4555]
[1725544116484,7.75903119,134.19,134.11,18.6411]
[1725544116875,7.4535,134.17,134.11,18.6411]
[1725544117087,7.4535,134.17,134.11,26.0975]
[1725544117485,20.0,134.16,134.11,26.0975]
[1725544117779,20.0,134.16,134.12,7.4557]
[1725544118093,20.0,134.17,134.13,7.4552]
[1725544118294,20.0,134.17,134.11,18.6411]
[1725544118602,20.0,134.18,134.08,24.8104]
[1725544118803,20.0,134.18,134.09,7.4575]
[1725544119106,7.4536,134.17,134.12,7.4559]
[1725544119281,20.0,134.16,134.1,18.6417]
[1725544119598,20.0,134.18,134.1,18.6417]
[1725544119772,7.4542,134.16,134.1,26.0987]
[1725544119979,7.4554,134.13,134.08,13.6232]
[1725544120186,7.4543,134.15,134.1,7.457]
[1725544120386,45.0,134.17,134.12,7.4554]
[1725544120673,7.75903119,134.19,134.15,7.4542]
[1725544120904,7.4527,134.18,134.13,18.6384]
[1725544121084,7.75903119,134.19,134.13,18.6384]
[1725544121085,7.4534,134.17,134.13,18.6384]
[1725544121571,7.75903119,134.19,134.13,18.6384]
[1725544121772,7.75903119,134.19,134.14,1.49055831]
[1725544121993,1.29412028,134.25,134.12,37.2781]
[1725544122300,7.7622035,134.25,134.17,18.6322]
[1725544122604,7.7622035,134.25,134.17,66.91904812]
[1725544122793,7.759031,134.24,134.17,22.5318]
[1725544122983,7.75889383,134.26,134.17,22.5318]
[1725544123497,7.75889383,134.26,134.16,7.4537]
[1725544123498,26.38079383,134.26,134.16,7.4537]
[1725544123703,7.451,134.21,134.16,7.4537]
[1725544123873,18.6243,134.24,134.13,6.2348]
[1725544124275,18.627,134.22,134.12,34.9645]
[1725544124598,7.4538,134.16,134.12,18.6394]
[1725544124794,65.0,134.21,134.07,16.3251]
[1725544124795,20.0,134.15,134.07,16.3251]
[1725544125010,18.6331,134.17,134.07,16.3251]
[1725544125296,20.0,134.16,134.08,18.6446]
[1725544125500,45.0,134.15,134.08,18.6446]
[1725544125702,7.4555,134.13,134.08,26.1023]
[1725544125879,20.0,134.12,134.09,7.4575]
[1725544126198,20.0,134.12,134.07,16.3251]
[1725544126199,20.0,134.14,134.11,7.456]
[1725544126386,20.0,134.14,134.12,7.4559]
[1725544126697,7.4532,134.17,134.12,7.4559]
[1725544126698,20.0,134.16,134.12,7.4558]
[1725544126868,7.4532,134.17,134.12,7.4558]
[1725544127401,18.6326,134.18,134.07,34.9719]
[1725544127779,18.6326,134.18,134.09,18.6431]
[1725544127976,45.0,134.17,134.09,18.6431]
[1725544128189,7.4544,134.15,134.11,7.4565]
[1725544128387,20.0,134.14,134.12,7.4558]
[1725544128586,20.0,134.16,134.15,7.4543]
[1725544128797,38.89966399,134.25,134.15,7.4543]
[1725544128798,7.452,134.2,134.15,7.4543]
[1725544128993,7.452,134.2,134.15,8.94481831]
[1725544129177,7.452,134.2,134.15,7.4543]
[1725544129677,7.4522,134.19,134.14,26.0915]
[1725544130197,34.6375,134.25,134.14,26.0915]
[1725544130374,7.4521,134.19,134.15,7.4542]
[1725544130576,7.4527,134.18,134.14,18.6368]
[1725544131610,16.0153,134.25,134.07,60.71234812]
[1725544131611,7.455,134.14,134.07,60.71234812]
[1725544131790,7.4538,134.16,134.11,7.4565]
[1725544131993,20.0,134.15,134.11,7.4565]
[1725544132506,20.0,134.15,134.07,60.71234812]
[1725544132507,20.0,134.15,134.07,34.9713]
[1725544132815,7.4562,134.12,134.07,42.4295]
[1725544132994,7.4567,134.11,134.07,34.9713]
[1725544133313,7.76199152,134.12,134.03,18.6514]
[1725544133478,7.76199152,134.12,134.07,7.4586]
[1725544133479,7.4566,134.11,134.07,7.4586]
[1725544133686,7.76199152,134.12,134.08,1.49130196]
[1725544133986,7.4555,134.13,134.07,18.6463]
[1725544134203,20.0,134.12,134.08,7.4578]
[1725544134404,20.0,134.12,134.07,18.6463]
[1725544134713,20.0,134.12,134.08,7.4581]
[1725544134910,20.0,134.12,134.09,8.94864661]
[1725544135207,7.76410604,134.13,134.1,18.6419]
[1725544135414,1.29590036,134.14,134.12,7.456]
[1725544135609,1.29590036,134.14,134.13,1.4907607]
[1725544135822,15.21303265,134.19,134.13,8.9460607]
[1725544136028,8.74854974,134.18,134.13,7.4553]
[1725544136306,8.74854974,134.18,134.05,37.2968]
[1725544136307,1.29564974,134.18,134.05,81.68404812]
[1725544136509,1.29564974,134.18,134.09,7.4574]
[1725544136510,7.455,134.14,134.09,7.4574]
[1725544136884,1.29564974,134.18,134.11,7.4565]
[1725544137099,7.4547,134.15,134.09,18.643]
[1725544137292,20.0,134.14,134.09,18.643]
[1725544137493,20.0,134.14,134.12,7.4559]
[1725544137706,1.29564974,134.18,134.14,7.4548]
[1725544137889,1.29564974,134.18,134.13,18.6377]
[1725544138088,1.29564974,134.18,134.11,7.4564]
[1725544138089,7.4538,134.16,134.11,7.4564]
[1725544138289,7.4552,134.14,134.1,18.6422]
[1725544138506,1.29564974,134.18,134.1,18.6422]
[1725544139228,1.29564974,134.18,134.14,7.4548]
[1725544139508,1.29564974,134.18,134.15,1.49056628]
[1725544139812,1.29564974,134.18,134.14,7.4548]
[1725544140020,7.4543,134.15,134.1,7.457]
[1725544140204,7.4533,134.17,134.12,7.4554]
[1725544140507,7.455,134.14,134.09,7.4575]
[1725544140710,7.4554,134.13,134.08,26.1031]
[1725544140891,7.4554,134.13,134.09,7.4576]
[1725544141093,7.4554,134.13,134.08,18.6451]
[1725544141094,7.4554,134.13,134.08,26.1032]
[1725544141305,7.4561,134.12,134.08,18.6451]
[1725544141502,18.6351,134.16,134.05,37.2968]
[1725544141703,7.456,134.12,134.08,7.4581]
[1725544141906,20.0,134.11,134.04,69.47864812]
[1725544142308,7.4571,134.1,134.05,7.4597]
[1725544142625,7.4579,134.09,134.05,7.4598]
[1725544143121,7.4579,134.09,134.04,32.5517]
[1725544143318,7.4579,134.09,134.05,7.4598]
[1725544143620,7.459,134.07,134.01,18.6549]
[1725544143823,20.0,134.11,134.03,18.6516]
[1725544144125,20.0,134.11,134.06,7.4592]
[1725544144424,7.4555,134.13,134.03,44.38724812]
[1725544144610,7.4555,134.13,134.08,7.4578]
[1725544144819,19.92814974,134.18,134.09,1.49114695]
[1725544145013,19.92814974,134.18,134.05,44.38724812]
[1725544145014,1.29564974,134.18,134.05,44.38724812]
[1725544145199,8.74844974,134.18,134.13,7.4552]
[1725544145393,8.74844974,134.18,134.09,50.79434812]
[1725544145394,7.4542,134.16,134.11,18.6408]
[1725544145600,7.4545,134.15,134.11,18.6408]
[1725544145918,7.75345933,134.17,134.11,18.6408]
[1725544146632,7.4545,134.15,134.11,18.6408]
[1725544146796,7.75345933,134.17,134.08,18.6448]
[1725544147002,7.75345933,134.17,134.05,6.268]
[1725544147003,7.4576,134.1,134.05,26.109]
[1725544147201,7.4586,134.08,134.03,7.4607]
[1725544147431,45.0,134.16,133.99,10.21863897]
[1725544147432,7.4617,134.02,133.99,10.21863897]
[1725544147619,20.0,134.01,133.99,0.8714843]
[1725544147817,7.4626,134.0,133.99,0.8714843]
[1725544148124,7.4626,134.0,133.9,18.6704]
[1725544148125,65.0,134.0,133.9,18.6704]
[1725544148329,65.0,134.0,133.86,6.3598]
[1725544148330,7.4667,133.93,133.86,6.3598]
[1725544148529,7.466,133.94,133.88,7.4693]
[1725544148831,7.75562477,133.96,133.87,44.38724812]
[1725544148999,20.0,133.95,133.89,18.6717]
[1725544149198,65.0,133.95,133.89,18.6717]
[1725544149626,65.0,133.95,133.9,7.4681]
[1725544149918,20.0,133.95,133.89,18.6717]
[1725544150304,7.75562477,133.96,133.94,7.4658]
[1725544151630,7.75562477,133.96,133.9,7.4677]
[1725544152130,20.0,133.95,133.91,7.4676]
[1725544152624,20.0,133.95,133.92,1.49334057]
[1725544152817,20.0,133.95,133.92,7.4669]
[1725544153009,20.0,133.95,133.87,18.6747]
[1725544153216,20.0,133.95,133.89,7.4682]
[1725544153435,45.0,133.94,133.87,18.6747]
[1725544153637,20.0,133.93,133.87,26.1445]
[1725544153930,45.0,133.92,133.87,18.6747]
[1725544154121,20.0,133.91,133.87,18.6747]
[1725544154633,20.0,133.91,133.89,7.4686]
[1725544154839,20.0,133.94,133.87,18.6747]
[1725544155029,45.0,133.93,133.89,7.4687]
[1725544155219,20.0,133.92,133.89,7.4687]
[1725544155417,20.0,133.96,133.9,7.4681]
[1725544155635,7.465,133.96,133.91,7.4675]
[1725544155833,7.4641,133.98,133.92,7.467]
[1725544156013,7.4647,133.97,133.9,18.6704]
[1725544156536,7.4638,133.98,133.92,7.4671]
[1725544157233,20.0,133.97,133.92,7.4671]
[1725544157421,20.0,133.97,133.9,18.6704]
[1725544157422,21.1931,134.03,133.93,18.6664]
[1725544157749,7.4632,134.0,133.94,7.4659]
[1725544158034,21.1931,134.03,133.97,7.4638]
[1725544158256,21.1931,134.03,133.95,7.4651]
[1725544158744,21.1931,134.03,133.9,18.6703]
[1725544159119,21.1931,134.03,133.92,18.6666]
[1725544159517,6.0246,134.03,133.96,7.4648]
[1725544159843,7.4622,134.01,133.96,7.4648]
[1725544160038,6.0246,134.03,133.97,18.6597]
[1725544160331,7.4598,134.06,133.99,18.6569]
[1725544160540,13.7688,134.07,134.02,7.461]
[1725544160732,13.7688,134.07,134.01,26.1163]
[1725544160935,7.4596,134.06,134.01,18.6542]
[1725544161133,6.3097,134.07,133.91,37.3375]
[1725544161337,7.4638,133.98,133.93,7.4663]
[1725544161512,7.4633,133.99,133.92,18.6676]
[1725544161839,45.0,133.98,133.92,18.6676]
[1725544162048,20.0,133.97,133.92,18.6676]
[1725544162346,18.6486,134.06,133.94,18.6639]
[1725544162523,7.4615,134.03,133.97,7.464]
[1725544162719,27.4619,134.02,133.96,26.1256]
[1725544162924,7.4619,134.02,133.96,26.1256]
[1725544163124,27.4623,134.01,133.96,18.6612]
[1725544163328,7.4628,134.0,133.96,18.6612]
[1725544163637,20.0,133.99,133.93,18.6663]
[1725544163846,7.4642,133.98,133.93,18.6663]
[1725544164155,65.0,133.97,133.93,18.6663]
[1725544164330,65.0,133.97,133.9,18.6703]
[1725544164523,7.465,133.96,133.9,18.6703]
[1725544164721,65.0,133.95,133.9,18.6703]
[1725544164926,20.0,133.95,133.92,7.4671]
[1725544165127,7.4633,133.99,133.92,18.667]
[1725544165327,18.6576,134.0,133.9,7.4681]
[1725544165544,1.29626953,133.98,133.9,7.4682]
[1725544165752,1.29626953,133.98,133.91,18.6683]
[1725544165945,65.0,133.99,133.91,18.6683]
[1725544166140,25.4539,134.08,133.97,7.4643]
[1725544166141,7.4618,134.02,133.97,7.4643]
[1725544166343,1.29605262,133.98,133.97,7.4643]
[1725544166546,7.4618,134.02,133.97,7.4643]
[1725544166748,7.4618,134.02,133.95,26.1273]
[1725544166749,7.4625,134.01,133.95,26.1273]
[1725544166951,1.29588081,134.02,133.95,18.6623]
[1725544167156,7.4638,133.98,133.92,18.6672]
[1725544167339,7.4633,133.99,133.94,7.4659]
[1725544167528,19.95068081,134.02,133.92,18.6672]
[1725544167843,6.2329,133.98,133.92,18.6672]
[1725544168042,7.4655,133.95,133.9,7.4682]
[1725544168948,65.0,133.97,133.93,7.4661]
[1725544169141,65.0,133.97,133.91,18.6682]
[1725544169336,65.0,133.97,133.87,37.3481]
[1725544169337,45.0,133.97,133.93,18.6657]
[1725544169646,45.0,133.98,133.93,18.6657]
[1725544169832,45.0,133.98,133.93,26.1322]
[1725544169833,7.4644,133.97,133.93,26.1322]
[1725544170039,52.4638,133.98,133.93,26.1322]
[1725544170432,45.0,133.98,133.9,18.6704]
[1725544170632,7.4653,133.96,133.91,7.4676]
[1725544171135,45.0,133.98,133.92,20.16018631]
[1725544171327,7.4639,133.98,133.94,7.4659]
[1725544171526,7.4634,133.99,133.92,18.6669]
[1725544171847,20.0,133.98,133.85,45.25873242]
[1725544172041,7.4656,133.95,133.91,7.4676]
[1725544172238,52.4648,133.97,133.92,7.4671]
[1725544172443,20.0,133.96,133.92,7.4671]
[1725544172735,7.4656,133.95,133.91,7.4675]
[1725544172950,7.4656,133.95,133.9,26.1378]
[1725544173461,20.0,133.96,133.92,18.6673]
[1725544173629,45.0,133.97,133.92,18.6673]
[1725544173630,34.6223,134.03,133.93,7.4665]
[1725544173938,38.6559,134.01,133.92,18.6673]
[1725544174324,7.4649,133.97,133.92,18.6673]
[1725544174528,20.0,133.96,133.92,18.6673]
[1725544174736,27.465,133.96,133.91,7.4675]
[1725544174949,1.49826182,133.92,133.91,7.4675]
[1725544175534,1.49826182,133.92,133.91,44.806]
[1725544176454,1.49826182,133.92,133.91,7.4675]
[1725544177435,1.49826182,133.92,133.91,7.4677]
[1725544179153,1.49826182,133.92,133.89,18.6712]
[1725544179666,1.49826182,133.92,133.9,7.4678]
[1725544180033,1.49826182,133.92,133.89,26.1398]
[1725544180233,8.96576182,133.92,133.87,7.4698]
[1725544180433,1.49826182,133.92,133.86,26.1453]
[1725544180641,20.0,133.92,133.87,7.4698]
[1725544180854,6.1075,133.91,133.8,0.1]
[1725544181061,7.4688,133.89,133.82,18.681]
[1725544181239,65.0,133.9,133.82,18.681]
[1725544181240,20.0,133.88,133.82,18.681]
[1725544181440,20.0,133.9,133.86,7.47]
[1725544181760,20.0,133.9,133.86,7.4703]
[1725544181936,45.0,133.89,133.86,7.4703]
[1725544182130,20.0,133.9,133.86,7.4703]
[1725544182436,45.0,133.89,133.84,26.1494]
[1725544182659,45.0,133.89,133.84,18.6779]
[1725544182958,45.0,133.89,133.85,8.3423843]
[1725544183148,45.0,133.89,133.86,7.4703]
[1725544183552,20.0,133.9,133.87,7.4698]
[1725544183749,20.0,133.91,133.86,7.4704]
[1725544183945,45.0,133.9,133.86,7.4704]
[1725544184444,52.4687,133.9,133.85,0.8714843]
[1725544184637,20.0,133.89,133.85,0.8714843]
[1725544184834,45.0,133.88,133.85,0.8714843]
[1725544185038,27.4689,133.89,133.85,0.8714843]
[1725544185262,20.0,133.89,133.85,8.3423843]
[1725544185561,20.0,133.89,133.86,26.1455]
[1725544185768,32.2482,133.95,133.9,7.4681]
[1725544185945,24.0621,133.97,133.9,1.49354648]
[1725544186142,7.465,133.96,133.91,18.668]
[1725544186450,18.6718,133.97,133.88,18.673]
[1725544186649,18.6718,133.97,133.9,18.6696]
[1725544186843,25.1687,133.99,133.9,18.6696]
[1725544187162,7.4661,133.94,133.9,18.6696]
[1725544187363,7.4655,133.95,133.91,7.4676]
[1725544187553,7.4644,133.97,133.92,7.467]
[1725544187765,7.4649,133.96,133.91,7.4676]
[1725544187948,7.4643,133.97,133.92,7.4669]
[1725544188154,20.0,133.96,133.92,7.4669]
[1725544188659,27.4651,133.96,133.9,26.1373]
[1725544188845,20.0,133.96,133.92,7.467]
[1725544189449,7.4661,133.94,133.89,7.4688]
[1725544189650,7.4661,133.94,133.87,18.6737]
[1725544189847,7.80643352,133.99,133.85,0.8714843]
[1725544190066,50.0,133.98,133.85,0.8714843]
[1725544190261,18.6645,133.95,133.85,0.8714843]
[1725544190652,45.0,133.94,133.85,0.8714843]
[1725544190848,7.4677,133.91,133.86,7.47]
[1725544191068,20.0,133.9,133.87,7.4697]
[1725544191381,20.0,133.9,133.86,7.4704]
[1725544192076,27.4684,133.9,133.85,8.3423843]
[1725544192462,26.5098,133.9,133.85,0.8714843]
[1725544192653,45.0,133.89,133.85,0.8714843]
[1725544192859,20.0,133.88,133.81,18.6825]
[1725544193058,20.0,133.88,133.83,7.4719]
[1725544193362,7.4706,133.86,133.81,28.04513729]
[1725544193563,7.4713,133.85,133.81,18.6825]
[1725544193768,7.4717,133.84,133.8,7.5737]
[1725544194080,7.4711,133.85,133.8,7.5737]
[1725544194280,7.4711,133.85,133.81,7.4732]
[1725544194454,20.0,133.88,133.8,18.7837]
[1725544194859,18.677,133.86,133.8,0.1]
[1725544195078,65.0,133.85,133.8,0.1]
[1725544195283,65.0,133.85,133.75,7.4765]
[1725544195491,7.4748,133.79,133.73,18.6936]
[1725544195826,65.0,133.85,133.72,0.8714843]
[1725544195827,20.0,133.78,133.72,0.8714843]
[1725544196083,20.0,133.79,133.72,0.8714843]
[1725544196295,20.0,133.79,133.72,8.3496843]
[1725544196296,7.4755,133.77,133.72,8.3496843]
[1725544196462,20.0,133.76,133.72,19.5663843]
[1725544196657,20.0,133.79,133.72,19.5663843]
[1725544197185,7.4749,133.78,133.73,7.4776]
[1725544197388,20.0,133.77,133.73,7.4776]
[1725544197581,20.0,133.77,133.74,7.4771]
[1725544197786,41.6141,133.84,133.72,19.5663843]
[1725544197989,7.4739,133.8,133.75,7.4764]
[1725544198280,56.0405,133.87,133.78,7.4747]
[1725544198281,37.3636,133.87,133.78,7.4747]
[1725544198463,20.0,133.86,133.75,6.2228]
[1725544198660,18.6882,133.87,133.75,6.2228]
[1725544198868,7.4698,133.88,133.77,44.38724812]
[1725544199053,20.352043,133.91,133.82,18.6807]
[1725544199263,20.352043,133.91,133.83,1.49397123]
[1725544199466,7.4688,133.89,133.84,7.4711]
[1725544199683,7.4688,133.89,133.85,1.49396848]
[1725544199992,7.4688,133.89,133.84,7.4711]
[1725544203084,7.4722,133.83,133.77,7.4754]
[1725544203407,65.0,133.86,133.73,23.7064]
[1725544203408,65.0,133.82,133.73,23.7064]
[1725544203608,7.4751,133.78,133.73,16.2292]
[1725544203804,7.4744,133.79,133.73,23.7068]
[1725544203987,65.0,133.82,133.74,18.6915]
[1725544204194,72.4728,133.82,133.74,18.6915]
[1725544204504,24.9996,133.87,133.78,7.4748]
[1725544204688,65.0,133.86,133.78,7.4748]
[1725544204890,65.0,133.86,133.76,18.689]
[1725544205478,65.0,133.86,133.76,26.1649]
[1725544205479,7.4728,133.82,133.76,26.1649]
[1725544205800,7.4723,133.83,133.77,7.4754]
[1725544206002,21.803,133.91,133.75,44.38724812]
[1725544206209,21.803,133.91,133.74,37.3857]
[1725544206210,7.4688,133.89,133.83,7.472]
[1725544206402,7.4688,133.9,133.79,44.38724812]
[1725544206599,18.6708,133.9,133.8,25.2754]
[1725544206981,7.4692,133.89,133.82,18.6808]
[1725544207187,7.4686,133.9,133.84,7.4711]
[1725544207384,7.4678,133.91,133.86,7.4704]
[1725544207603,7.4672,133.92,133.87,1.49364976]
[1725544207813,18.666,133.94,133.84,18.678]
[1725544208010,7.4687,133.9,133.84,26.1495]
[1725544208202,18.6686,133.92,133.8,25.275]
[1725544208418,87.3332,133.93,133.77,34.8618]
[1725544208590,7.4706,133.86,133.8,7.4733]
[1725544208915,20.0,133.85,133.79,18.685]
[1725544209120,20.0,133.92,133.77,16.1734]
[1725544209298,7.472,133.84,133.77,16.1734]
[1725544209493,18.6743,133.88,133.8,7.4737]
[1725544209816,20.0,133.87,133.82,7.4722]
[1725544210419,7.4677,133.91,133.86,7.4704]
[1725544210711,7.4677,133.91,133.85,7.4709]
[1725544210907,7.4677,133.91,133.86,8.96409136]
[1725544211110,7.4677,133.91,133.86,7.4704]
[1725544211327,7.4671,133.92,133.87,7.4699]
[1725544211689,7.4671,133.92,133.86,7.4703]
[1725544211884,7.4677,133.91,133.86,7.4703]
[1725544212089,7.4672,133.92,133.86,7.4703]
[1725544212389,20.352043,133.96,133.85,6.1436]
[1725544212390,7.4689,133.89,133.85,6.1436]
[1725544212585,18.6674,133.93,133.85,6.1436]
[1725544212789,7.4698,133.88,133.83,7.472]
[1725544213089,7.4688,133.89,133.84,7.4715]
[1725544213285,18.6706,133.91,133.81,6.2163]
[1725544213599,7.4677,133.91,133.84,18.6781]
[1725544213797,7.4673,133.92,133.85,1.49362274]
[1725544214008,7.4679,133.91,133.86,8.96387021]
[1725544214296,7.4679,133.91,133.84,18.6781]
[1725544214297,7.4655,133.95,133.89,7.4683]
[1725544214500,7.4656,133.95,133.9,7.4681]
[1725544214701,43.3917,134.0,133.88,18.6726]
[1725544214906,18.6675,133.93,133.84,22.4927]
[1725544215097,7.4688,133.89,133.84,15.0213]
[1725544215300,7.4698,133.88,133.83,18.6796]
[1725544215822,7.4698,133.88,133.83,26.1516]
[1725544216119,7.4681,133.91,133.85,7.4706]
[1725544216295,37.3265,133.96,133.82,7.4726]
[1725544216492,7.4703,133.87,133.82,18.6814]
[1725544216692,37.3356,133.93,133.81,6.2163]
[1725544216918,65.0,133.92,133.79,15.1098]
[1725544217130,83.6683,133.92,133.82,7.4723]
[1725544217299,6.5169,133.91,133.81,18.6821]
[1725544217502,7.4705,133.86,133.81,7.4731]
[1725544218003,45.0,133.9,133.81,26.156]
[1725544218204,7.4707,133.86,133.81,18.6829]
[1725544218506,45.0,133.9,133.78,26.1621]
[1725544218701,20.0,133.89,133.8,18.6838]
[1725544219009,45.0,133.88,133.8,18.6838]
[1725544219198,7.4711,133.85,133.8,18.6838]
[1725544219404,7.4729,133.82,133.77,24.9913]
[1725544219632,7.4729,133.82,133.77,18.6884]
[1725544220325,7.475,133.78,133.73,13.5317]
[1725544221026,7.4738,133.8,133.74,7.4771]
[1725544221210,27.4744,133.79,133.73,13.5316]
[1725544222411,7.4777,133.74,133.68,26.1813]
[1725544222629,7.4766,133.75,133.69,7.4798]
[1725544223235,20.0,133.74,133.69,7.4798]
[1725544223538,7.4777,133.73,133.66,7.4816]
[1725544223739,7.4772,133.74,133.65,18.7053]
[1725544224030,27.4777,133.73,133.66,7.4812]
[1725544224339,6.6251,133.81,133.73,7.4777]
[1725544224637,37.3586,133.84,133.74,1.49513579]
[1725544224940,37.3586,133.84,133.65,47.4098]
[1725544224941,18.6827,133.82,133.7,18.6974]
[1725544225709,7.4767,133.75,133.7,18.6974]
[1725544225937,7.4772,133.74,133.69,7.4799]
[1725544226119,18.6858,133.8,133.69,18.6987]
[1725544226520,7.4772,133.74,133.68,7.4804]
[1725544226721,65.0,133.79,133.68,7.4804]
[1725544226931,7.4777,133.74,133.67,18.7016]
[1725544227115,20.0,133.73,133.67,18.7016]
[1725544227715,7.4755,133.78,133.71,7.4788]
[1725544228013,7.4755,133.77,133.71,7.4788]
[1725544228426,18.6806,133.83,133.72,19.5666843]
[1725544228622,7.4738,133.8,133.74,7.4771]
[1725544228828,7.4731,133.82,133.77,7.4754]
[1725544229012,7.4722,133.83,133.78,1.49468205]
[1725544229521,24.9913,133.87,133.77,7.4754]
[1725544229522,7.4701,133.87,133.81,7.4731]
[1725544229715,10.0,133.98,133.77,44.38724812]
[1725544229716,18.6913,133.9,133.83,59.94214812]
[1725544230230,23.55658001,133.99,133.88,7.4693]
[1725544230231,7.4666,133.93,133.88,7.4693]
[1725544230537,37.66015501,133.99,133.89,1.4934338]
[1725544230742,7.465,133.96,133.9,7.4682]
[1725544230924,7.465,133.96,133.89,5.70806412]